[Event "Rapid Tournament (RAP)"]
[Site "Biel, Switzerland"]
[Date "2026.07.12"]
[Round "1.35"]
[White "El-Mais, Ibaa"]
[Black "Ghosh, David"]
[Result "1-0"]
[TimeControl "15 + 5"]
[WhiteTitle "-"]
[BlackTitle "-"]
[WhiteFideId "1312715"]
[BlackFideId "1366718"]
[WhiteElo "2100"]
[BlackElo "1685"]

1. d4 {[%clk 00:15:07]} {[%emt 00:00:02]} d5 {[%clk 00:15:09]} {[%emt
00:00:01]} 2. c4 {[%clk 00:15:08]} {[%emt 00:00:05]} c6 {[%clk 00:14:56]}
{[%emt 00:00:18]} 3. Nf3 {[%clk 00:15:11]} {[%emt 00:00:01]} Bf5 {[%clk
00:14:59]} {[%emt 00:00:03]} 4. Nc3 {[%clk 00:15:04]} {[%emt 00:00:12]} dxc4
{[%clk 00:14:51]} {[%emt 00:00:13]} 5. e4 {[%clk 00:15:03]} {[%emt 00:00:06]}
Bg6 {[%clk 00:14:34]} {[%emt 00:00:22]} 6. a4 {[%clk 00:14:57]} {[%emt
00:00:11]} Nf6 {[%clk 00:14:24]} {[%emt 00:00:15]} 7. e5 {[%clk 00:14:24]}
{[%emt 00:00:37]} Nd5 {[%clk 00:14:06]} {[%emt 00:00:23]} 8. e6 {[%clk
00:14:26]} {[%emt 00:00:02]} Nb4 {[%clk 00:12:51]} {[%emt 00:01:20]} 9. exf7+
{[%clk 00:13:39]} {[%emt 00:00:53]} Bxf7 {[%clk 00:12:25]} {[%emt 00:00:31]} 10.
Ne5 {[%clk 00:09:00]} {[%emt 00:04:44]} Nd3+ {[%clk 00:08:41]} {[%emt
00:03:49]} 11. Bxd3 {[%clk 00:07:49]} {[%emt 00:01:16]} cxd3 {[%clk 00:07:53]}
{[%emt 00:00:53]} 12. Nxf7 {[%clk 00:07:18]} {[%emt 00:00:36]} Kxf7 {[%clk
00:07:45]} {[%emt 00:00:12]} 13. Qf3+ {[%clk 00:07:09]} {[%emt 00:00:15]} Kg8
{[%clk 00:07:14]} {[%emt 00:00:36]} 14. Qxd3 {[%clk 00:07:00]} {[%emt
00:00:13]} Qe8 {[%clk 00:05:35]} {[%emt 00:01:45]} 15. O-O {[%clk 00:06:45]}
{[%emt 00:00:20]} Nd7 {[%clk 00:05:11]} {[%emt 00:00:30]} 16. Re1 {[%clk
00:06:21]} {[%emt 00:00:28]} e6 {[%clk 00:03:27]} {[%emt 00:01:49]} 17. Qc4
{[%clk 00:05:23]} {[%emt 00:01:03]} Kf7 {[%clk 00:02:13]} {[%emt 00:01:19]} 18.
Qb3 {[%clk 00:04:54]} {[%emt 00:00:35]} Bd6 {[%clk 00:01:38]} {[%emt 00:00:39]}
19. Ne4 {[%clk 00:04:19]} {[%emt 00:00:40]} Qe7 {[%clk 00:00:43]} {[%emt
00:01:00]} 20. Ng5+ {[%clk 00:04:19]} {[%emt 00:00:05]} Kf8 {[%clk 00:00:17]}
{[%emt 00:00:30]} 21. Rxe6 {[%clk 00:04:06]} {[%emt 00:00:19]} Qd8 {[%clk
00:00:13]} {[%emt 00:00:10]} 22. Rxd6 {[%clk 00:04:07]} {[%emt 00:00:03]} Qc7
{[%clk 00:00:06]} {[%emt 00:00:13]} 23. Qf7# {[%clk 00:04:06]} {[%emt
00:00:05]} 1-0

[Event "Rapid Tournament (RAP)"]
[Site "Biel, Switzerland"]
[Date "2026.07.12"]
[Round "1.36"]
[White "Haefliger, Patrick"]
[Black "Fogo Esquivel, Levi Kalani Alexander"]
[Result "0-1"]
[TimeControl "15 + 5"]
[WhiteTitle "-"]
[BlackTitle "-"]
[WhiteFideId "1372777"]
[BlackFideId "5183189"]
[WhiteElo "1685"]
[BlackElo "2088"]

1. e4 {[%clk 00:15:07]} {[%emt 00:00:03]} e5 {[%clk 00:15:07]} {[%emt
00:00:05]} 2. f4 {[%clk 00:15:10]} {[%emt 00:00:01]} exf4 {[%clk 00:15:05]}
{[%emt 00:00:07]} 3. Nf3 {[%clk 00:15:12]} {[%emt 00:00:02]} g5 {[%clk
00:15:07]} {[%emt 00:00:03]} 4. Bc4 {[%clk 00:15:07]} {[%emt 00:00:10]} Nc6
{[%clk 00:13:54]} {[%emt 00:01:18]} 5. h3 {[%clk 00:14:33]} {[%emt 00:00:40]}
Bg7 {[%clk 00:13:53]} {[%emt 00:00:04]} 6. c3 {[%clk 00:14:21]} {[%emt
00:00:17]} d6 {[%clk 00:13:13]} {[%emt 00:00:45]} 7. d4 {[%clk 00:13:02]}
{[%emt 00:01:24]} h6 {[%clk 00:13:10]} {[%emt 00:00:09]} 8. Nbd2 {[%clk
00:12:34]} {[%emt 00:00:32]} Nf6 {[%clk 00:12:57]} {[%emt 00:00:19]} 9. Nb3
{[%clk 00:11:41]} {[%emt 00:00:57]} Nxe4 {[%clk 00:12:29]} {[%emt 00:00:34]} 10.
Bd5 {[%clk 00:09:37]} {[%emt 00:02:09]} Ng3 {[%clk 00:12:12]} {[%emt 00:00:21]}
11. Rg1 {[%clk 00:09:41]} {[%emt 00:00:01]} Ne7 {[%clk 00:12:04]} {[%emt
00:00:13]} 12. Bc4 {[%clk 00:09:10]} {[%emt 00:00:36]} O-O {[%clk 00:12:04]}
{[%emt 00:00:05]} 13. Bd2 {[%clk 00:08:37]} {[%emt 00:00:38]} Nef5 {[%clk
00:11:58]} {[%emt 00:00:11]} 14. Qc2 {[%clk 00:08:09]} {[%emt 00:00:34]} Re8+
{[%clk 00:12:01]} {[%emt 00:00:02]} 15. Kf2 {[%clk 00:08:13]} {[%emt 00:00:01]}
Ne4+ {[%clk 00:12:05]} {[%emt 00:00:01]} 16. Ke1 {[%clk 00:07:48]} {[%emt
00:00:30]} Nxc3+ {[%clk 00:12:00]} {[%emt 00:00:09]} 17. Kf2 {[%clk 00:07:37]}
{[%emt 00:00:16]} Ne4+ {[%clk 00:11:53]} {[%emt 00:00:13]} 18. Ke1 {[%clk
00:07:41]} {[%emt 00:00:01]} Nxd2+ {[%clk 00:10:20]} {[%emt 00:01:38]} 19. Kxd2
{[%clk 00:07:39]} {[%emt 00:00:07]} Ne3 {[%clk 00:10:21]} {[%emt 00:00:04]} 20.
Qc3 {[%clk 00:07:07]} {[%emt 00:00:37]} Nxc4+ {[%clk 00:10:20]} {[%emt
00:00:07]} 21. Qxc4 {[%clk 00:07:07]} {[%emt 00:00:05]} Re3 {[%clk 00:09:49]}
{[%emt 00:00:34]} 22. Rac1 {[%clk 00:06:24]} {[%emt 00:00:49]} c6 {[%clk
00:09:33]} {[%emt 00:00:20]} 23. Rge1 {[%clk 00:05:06]} {[%emt 00:01:22]} Qe7
{[%clk 00:09:37]} {[%emt 00:00:02]} 24. Rc3 {[%clk 00:04:42]} {[%emt 00:00:30]}
Rxe1 {[%clk 00:09:29]} {[%emt 00:00:13]} 25. Nxe1 {[%clk 00:04:44]} {[%emt
00:00:03]} Be6 {[%clk 00:09:14]} {[%emt 00:00:20]} 26. Qd3 {[%clk 00:04:29]}
{[%emt 00:00:20]} Re8 {[%clk 00:09:17]} {[%emt 00:00:02]} 27. Nf3 {[%clk
00:03:43]} {[%emt 00:00:51]} c5 {[%clk 00:08:26]} {[%emt 00:00:56]} 28. Rc1
{[%clk 00:03:44]} {[%emt 00:00:04]} c4 {[%clk 00:08:28]} {[%emt 00:00:03]} 29.
Rxc4 {[%clk 00:03:44]} {[%emt 00:00:05]} Bxc4 {[%clk 00:08:31]} {[%emt
00:00:02]} 30. Qxc4 {[%clk 00:03:48]} {[%emt 00:00:01]} Qe3+ {[%clk 00:08:30]}
{[%emt 00:00:06]} 31. Kd1 {[%clk 00:03:36]} {[%emt 00:00:17]} Qf2 {[%clk
00:08:20]} {[%emt 00:00:14]} 32. Nbd2 {[%clk 00:03:04]} {[%emt 00:00:37]} Qxg2
{[%clk 00:08:16]} {[%emt 00:00:09]} 33. Kc2 {[%clk 00:03:08]} Qxh3 {[%clk
00:08:18]} {[%emt 00:00:03]} 0-1

[Event "Rapid Tournament (RAP)"]
[Site "Biel, Switzerland"]
[Date "2026.07.12"]
[Round "1.37"]
[White "Xu, Chang(Cq)"]
[Black "Gast, Michael"]
[Result "1-0"]
[TimeControl "15 + 5"]
[WhiteTitle "-"]
[BlackTitle "-"]
[WhiteFideId "8641757"]
[BlackFideId "1373196"]
[WhiteElo "2082"]
[BlackElo "1682"]

1. e4 {[%clk 00:15:05]} {[%emt 00:00:04]} d6 {[%clk 00:15:07]} {[%emt
00:00:04]} 2. d4 {[%clk 00:15:08]} {[%emt 00:00:02]} Nf6 {[%clk 00:15:09]}
{[%emt 00:00:03]} 3. Nc3 {[%clk 00:15:11]} {[%emt 00:00:02]} g6 {[%clk
00:15:08]} {[%emt 00:00:05]} 4. Be3 {[%clk 00:15:13]} {[%emt 00:00:03]} Bg7
{[%clk 00:15:01]} {[%emt 00:00:12]} 5. Qd2 {[%clk 00:15:13]} {[%emt 00:00:04]}
O-O {[%clk 00:14:42]} {[%emt 00:00:25]} 6. O-O-O {[%clk 00:15:10]} {[%emt
00:00:08]} Ng4 {[%clk 00:13:16]} {[%emt 00:01:32]} 7. Bg5 {[%clk 00:15:08]}
{[%emt 00:00:07]} f6 {[%clk 00:13:08]} {[%emt 00:00:13]} 8. Bf4 {[%clk
00:10:36]} {[%emt 00:04:36]} e5 {[%clk 00:12:33]} {[%emt 00:00:40]} 9. dxe5
{[%clk 00:10:34]} {[%emt 00:00:07]} fxe5 {[%clk 00:12:14]} {[%emt 00:00:24]} 10.
Bg5 {[%clk 00:10:31]} {[%emt 00:00:08]} Qe8 {[%clk 00:11:54]} {[%emt 00:00:26]}
11. f3 {[%clk 00:10:28]} {[%emt 00:00:07]} Nf6 {[%clk 00:11:41]} {[%emt
00:00:18]} 12. h4 {[%clk 00:06:40]} {[%emt 00:03:53]} Be6 {[%clk 00:09:40]}
{[%emt 00:02:06]} 13. Bh6 {[%clk 00:06:16]} {[%emt 00:00:29]} Rf7 {[%clk
00:08:52]} {[%emt 00:00:54]} 14. Bxg7 {[%clk 00:06:09]} {[%emt 00:00:11]} Rxg7
{[%clk 00:08:45]} {[%emt 00:00:13]} 15. g4 {[%clk 00:05:46]} {[%emt 00:00:27]}
a6 {[%clk 00:08:36]} {[%emt 00:00:15]} 16. Nge2 {[%clk 00:04:48]} {[%emt
00:01:02]} Nbd7 {[%clk 00:07:55]} {[%emt 00:00:46]} 17. h5 {[%clk 00:04:35]}
{[%emt 00:00:18]} Nb6 {[%clk 00:06:45]} {[%emt 00:01:15]} 18. Ng3 {[%clk
00:04:31]} {[%emt 00:00:09]} Rd8 {[%clk 00:05:54]} {[%emt 00:00:56]} 19. hxg6
{[%clk 00:03:53]} {[%emt 00:00:43]} Qxg6 {[%clk 00:05:47]} {[%emt 00:00:12]} 20.
Rh6 {[%clk 00:03:35]} {[%emt 00:00:23]} Qf7 {[%clk 00:05:14]} {[%emt 00:00:38]}
21. Bd3 {[%clk 00:02:55]} {[%emt 00:00:45]} Bc4 {[%clk 00:05:09]} {[%emt
00:00:11]} 22. Nf5 {[%clk 00:02:43]} {[%emt 00:00:16]} Bxd3 {[%clk 00:04:31]}
{[%emt 00:00:43]} 23. cxd3 {[%clk 00:02:40]} {[%emt 00:00:08]} Rg6 {[%clk
00:04:09]} {[%emt 00:00:27]} 24. Rxg6+ {[%clk 00:02:40]} {[%emt 00:00:05]} Qxg6
{[%clk 00:03:45]} {[%emt 00:00:29]} 25. Ne7+ {[%clk 00:02:43]} {[%emt
00:00:03]} Kg7 {[%clk 00:03:43]} {[%emt 00:00:07]} 26. Nxg6 {[%clk 00:02:44]}
{[%emt 00:00:03]} hxg6 {[%clk 00:03:46]} {[%emt 00:00:01]} 27. Rh1 {[%clk
00:02:47]} {[%emt 00:00:03]} Rg8 {[%clk 00:03:28]} {[%emt 00:00:23]} 28. Qh6+
{[%clk 00:02:26]} {[%emt 00:00:26]} Kf7 {[%clk 00:03:29]} {[%emt 00:00:05]} 29.
g5 {[%clk 00:02:27]} {[%emt 00:00:03]} Nh5 {[%clk 00:03:23]} {[%emt 00:00:12]}
30. Rxh5 {[%clk 00:02:29]} {[%emt 00:00:03]} gxh5 {[%clk 00:03:25]} {[%emt
00:00:02]} 31. Qxh5+ {[%clk 00:02:30]} {[%emt 00:00:04]} Kg7 {[%clk 00:03:15]}
{[%emt 00:00:16]} 32. g6 {[%clk 00:02:30]} {[%emt 00:00:04]} Rh8 {[%clk
00:03:09]} {[%emt 00:00:11]} 33. Qf5 {[%clk 00:02:33]} {[%emt 00:00:02]} Rf8
{[%clk 00:03:04]} {[%emt 00:00:09]} 34. Qe6 {[%clk 00:02:20]} {[%emt 00:00:19]}
Rf6 {[%clk 00:03:02]} {[%emt 00:00:08]} 35. Qe7+ {[%clk 00:02:22]} {[%emt
00:00:03]} Kxg6 {[%clk 00:03:04]} {[%emt 00:00:02]} 36. Qxc7 {[%clk 00:02:24]}
{[%emt 00:00:03]} d5 {[%clk 00:02:55]} {[%emt 00:00:14]} 37. Qxe5 {[%clk
00:02:21]} {[%emt 00:00:08]} Nd7 {[%clk 00:02:50]} {[%emt 00:00:11]} 38. Qg3+
{[%clk 00:02:21]} {[%emt 00:00:04]} Kf7 {[%clk 00:02:51]} {[%emt 00:00:04]} 39.
Nxd5 {[%clk 00:02:24]} {[%emt 00:00:03]} Rg6 {[%clk 00:02:19]} {[%emt
00:00:37]} 40. Qf4+ {[%clk 00:02:25]} {[%emt 00:00:03]} Kg7 {[%clk 00:02:06]}
{[%emt 00:00:18]} 41. e5 {[%clk 00:02:19]} {[%emt 00:00:11]} Nc5 {[%clk
00:02:03]} {[%emt 00:00:08]} 42. Qd4 {[%clk 00:02:16]} {[%emt 00:00:08]} Rc6
{[%clk 00:01:26]} {[%emt 00:00:43]} 43. e6+ {[%clk 00:02:04]} {[%emt 00:00:17]}
Kf8 {[%clk 00:01:11]} {[%emt 00:00:19]} 44. Qf6+ {[%clk 00:02:06]} {[%emt
00:00:04]} Kg8 {[%clk 00:01:11]} {[%emt 00:00:05]} 45. Ne7+ {[%clk 00:02:00]}
{[%emt 00:00:10]} 1-0

[Event "Rapid Tournament (RAP)"]
[Site "Biel, Switzerland"]
[Date "2026.07.12"]
[Round "1.38"]
[White "Jaggy, Enzo"]
[Black "Haugner, Jan"]
[Result "0-1"]
[TimeControl "15 + 5"]
[WhiteTitle "-"]
[BlackTitle "-"]
[WhiteFideId "1344919"]
[BlackFideId "24655244"]
[WhiteElo "1682"]
[BlackElo "2079"]

1. d4 {[%clk 00:15:07]} {[%emt 00:00:04]} d5 {[%clk 00:15:10]} 2. Nf3 {[%clk
00:15:11]} e6 {[%clk 00:15:14]} {[%emt 00:00:01]} 3. e3 {[%clk 00:15:14]}
{[%emt 00:00:02]} Nf6 {[%clk 00:15:17]} {[%emt 00:00:01]} 4. Bd3 {[%clk
00:15:16]} {[%emt 00:00:02]} b6 {[%clk 00:15:20]} {[%emt 00:00:02]} 5. Nbd2
{[%clk 00:15:20]} {[%emt 00:00:02]} Bb7 {[%clk 00:15:23]} {[%emt 00:00:02]} 6.
O-O {[%clk 00:15:21]} {[%emt 00:00:03]} Be7 {[%clk 00:15:10]} {[%emt 00:00:17]}
7. Re1 {[%clk 00:15:25]} {[%emt 00:00:02]} Ne4 {[%clk 00:14:20]} {[%emt
00:00:55]} 8. Ne5 {[%clk 00:14:32]} {[%emt 00:00:58]} O-O {[%clk 00:13:32]}
{[%emt 00:00:54]} 9. Qf3 {[%clk 00:13:45]} {[%emt 00:00:51]} f6 {[%clk
00:12:30]} {[%emt 00:01:06]} 10. Ng4 {[%clk 00:12:46]} {[%emt 00:01:05]} h5
{[%clk 00:11:30]} {[%emt 00:01:05]} 11. Nxe4 {[%clk 00:12:40]} {[%emt
00:00:11]} hxg4 {[%clk 00:11:26]} {[%emt 00:00:09]} 12. Qxg4 {[%clk 00:12:44]}
{[%emt 00:00:01]} dxe4 {[%clk 00:11:09]} {[%emt 00:00:22]} 13. Bxe4 {[%clk
00:12:48]} f5 {[%clk 00:10:51]} {[%emt 00:00:23]} 14. Bxb7 {[%clk 00:12:33]}
{[%emt 00:00:20]} fxg4 {[%clk 00:10:55]} {[%emt 00:00:02]} 15. Bxa8 {[%clk
00:12:37]} c6 {[%clk 00:10:49]} {[%emt 00:00:10]} 16. c4 {[%clk 00:11:34]}
{[%emt 00:01:08]} Qd7 {[%clk 00:10:25]} {[%emt 00:00:28]} 17. d5 {[%clk
00:11:37]} {[%emt 00:00:02]} exd5 {[%clk 00:10:23]} {[%emt 00:00:07]} 18. cxd5
{[%clk 00:11:41]} {[%emt 00:00:02]} Qxd5 {[%clk 00:10:17]} {[%emt 00:00:11]} 19.
b3 {[%clk 00:11:31]} {[%emt 00:00:15]} Na6 {[%clk 00:09:52]} {[%emt 00:00:30]}
20. Bb7 {[%clk 00:11:32]} {[%emt 00:00:04]} Nc5 {[%clk 00:09:56]} {[%emt
00:00:01]} 21. Ba3 {[%clk 00:11:32]} {[%emt 00:00:05]} Qf7 {[%clk 00:09:34]}
{[%emt 00:00:27]} 22. Bxc6 {[%clk 00:10:19]} {[%emt 00:01:18]} Qxf2+ {[%clk
00:09:30]} {[%emt 00:00:09]} 23. Kh1 {[%clk 00:10:24]} Nd3 {[%clk 00:09:10]}
{[%emt 00:00:24]} 24. Bxe7 {[%clk 00:09:01]} {[%emt 00:01:28]} Nxe1 {[%clk
00:09:04]} {[%emt 00:00:10]} 25. h3 {[%clk 00:08:50]} {[%emt 00:00:17]} g3
{[%clk 00:08:52]} {[%emt 00:00:17]} 26. Bd5+ {[%clk 00:08:37]} {[%emt
00:00:19]} Kh8 {[%clk 00:08:49]} {[%emt 00:00:07]} 27. Bc4 {[%clk 00:08:41]}
Qf1+ {[%clk 00:08:51]} {[%emt 00:00:03]} 28. Bxf1 {[%clk 00:08:37]} Rxf1#
{[%clk 00:08:51]} 0-1

[Event "Rapid Tournament (RAP)"]
[Site "Biel, Switzerland"]
[Date "2026.07.12"]
[Round "1.39"]
[White "Ling, Chenxuan"]
[Black "Gheorghiu, Gabriel-Ion"]
[Result "1-0"]
[TimeControl "15 + 5"]
[WhiteTitle "-"]
[BlackTitle "-"]
[WhiteFideId "30983118"]
[BlackFideId "1248820"]
[WhiteElo "2077"]
[BlackElo "1679"]

1. Nf3 {[%clk 00:15:04]} {[%emt 00:00:05]} Nc6 {[%clk 00:15:06]} {[%emt
00:00:05]} 2. d4 {[%clk 00:15:08]} {[%emt 00:00:02]} d5 {[%clk 00:15:07]}
{[%emt 00:00:03]} 3. e3 {[%clk 00:15:11]} {[%emt 00:00:02]} Nf6 {[%clk
00:15:08]} {[%emt 00:00:05]} 4. Bd3 {[%clk 00:15:14]} Bg4 {[%clk 00:15:04]}
{[%emt 00:00:09]} 5. h3 {[%clk 00:15:18]} {[%emt 00:00:02]} Bd7 {[%clk
00:15:03]} {[%emt 00:00:06]} 6. O-O {[%clk 00:15:20]} {[%emt 00:00:02]} Ne4
{[%clk 00:14:58]} {[%emt 00:00:10]} 7. Nbd2 {[%clk 00:15:21]} {[%emt 00:00:03]}
Nxd2 {[%clk 00:14:41]} {[%emt 00:00:22]} 8. Qxd2 {[%clk 00:15:25]} {[%emt
00:00:02]} g6 {[%clk 00:14:39]} {[%emt 00:00:07]} 9. b3 {[%clk 00:15:28]}
{[%emt 00:00:02]} Bg7 {[%clk 00:14:43]} {[%emt 00:00:01]} 10. Bb2 {[%clk
00:15:32]} {[%emt 00:00:01]} O-O {[%clk 00:14:42]} {[%emt 00:00:06]} 11. c4
{[%clk 00:15:36]} {[%emt 00:00:01]} e6 {[%clk 00:14:15]} {[%emt 00:00:32]} 12.
Rac1 {[%clk 00:15:40]} {[%emt 00:00:02]} Qe7 {[%clk 00:13:52]} {[%emt
00:00:28]} 13. e4 {[%clk 00:15:43]} {[%emt 00:00:01]} Nb4 {[%clk 00:13:40]}
{[%emt 00:00:17]} 14. exd5 {[%clk 00:15:19]} {[%emt 00:00:29]} Nxd3 {[%clk
00:13:40]} {[%emt 00:00:05]} 15. Qxd3 {[%clk 00:15:23]} {[%emt 00:00:02]} exd5
{[%clk 00:13:37]} {[%emt 00:00:08]} 16. cxd5 {[%clk 00:15:17]} {[%emt
00:00:10]} Rac8 {[%clk 00:13:22]} {[%emt 00:00:20]} 17. Ne5 {[%clk 00:15:07]}
{[%emt 00:00:15]} Rfe8 {[%clk 00:12:55]} {[%emt 00:00:32]} 18. Qc4 {[%clk
00:15:03]} {[%emt 00:00:09]} a6 {[%clk 00:11:48]} {[%emt 00:01:13]} 19. a4
{[%clk 00:15:06]} {[%emt 00:00:02]} b5 {[%clk 00:11:33]} {[%emt 00:00:20]} 20.
Qc2 {[%clk 00:14:48]} {[%emt 00:00:22]} Bf5 {[%clk 00:11:19]} {[%emt 00:00:19]}
21. Qc6 {[%clk 00:14:43]} {[%emt 00:00:10]} bxa4 {[%clk 00:10:29]} {[%emt
00:00:55]} 22. Qxa4 {[%clk 00:14:40]} {[%emt 00:00:09]} Qd6 {[%clk 00:09:30]}
{[%emt 00:01:03]} 23. Qc6 {[%clk 00:14:19]} {[%emt 00:00:26]} Red8 {[%clk
00:08:48]} {[%emt 00:00:47]} 24. Rc5 {[%clk 00:12:07]} {[%emt 00:02:17]} Bf8
{[%clk 00:07:58]} {[%emt 00:00:55]} 25. Qa4 {[%clk 00:11:50]} {[%emt 00:00:23]}
Qb6 {[%clk 00:07:51]} {[%emt 00:00:12]} 26. Rc6 {[%clk 00:11:47]} {[%emt
00:00:07]} Qb5 {[%clk 00:07:37]} {[%emt 00:00:19]} 27. Rfc1 {[%clk 00:10:33]}
{[%emt 00:01:19]} Qxa4 {[%clk 00:06:36]} {[%emt 00:01:06]} 28. bxa4 {[%clk
00:10:37]} {[%emt 00:00:01]} Rxd5 {[%clk 00:06:14]} {[%emt 00:00:28]} 29. Rxa6
{[%clk 00:10:40]} {[%emt 00:00:01]} c5 {[%clk 00:05:51]} {[%emt 00:00:28]} 30.
g4 {[%clk 00:10:16]} {[%emt 00:00:30]} Be6 {[%clk 00:05:38]} {[%emt 00:00:18]}
31. Rc6 {[%clk 00:08:53]} {[%emt 00:01:28]} Rxc6 {[%clk 00:05:16]} {[%emt
00:00:27]} 32. Nxc6 {[%clk 00:08:54]} {[%emt 00:00:04]} cxd4 {[%clk 00:05:12]}
{[%emt 00:00:09]} 33. Nxd4 {[%clk 00:08:58]} {[%emt 00:00:01]} Bd7 {[%clk
00:04:10]} {[%emt 00:01:07]} 34. Rc4 {[%clk 00:08:51]} {[%emt 00:00:12]} Ra5
{[%clk 00:03:40]} {[%emt 00:00:34]} 35. Rc7 {[%clk 00:08:38]} {[%emt 00:00:18]}
Bxa4 {[%clk 00:02:57]} {[%emt 00:00:48]} 36. Rc8 {[%clk 00:08:42]} Bd7 {[%clk
00:02:32]} {[%emt 00:00:30]} 37. Rd8 {[%clk 00:08:45]} {[%emt 00:00:02]} Be6
{[%clk 00:02:22]} {[%emt 00:00:16]} 38. Bc3 {[%clk 00:08:32]} {[%emt 00:00:18]}
Rd5 {[%clk 00:02:18]} {[%emt 00:00:09]} 39. Rb8 {[%clk 00:08:36]} h5 {[%clk
00:01:50]} {[%emt 00:00:32]} 40. Nxe6 {[%clk 00:08:37]} {[%emt 00:00:04]} fxe6
{[%clk 00:01:53]} {[%emt 00:00:02]} 41. Bb4 {[%clk 00:08:42]} hxg4 {[%clk
00:01:37]} {[%emt 00:00:21]} 42. hxg4 {[%clk 00:08:41]} {[%emt 00:00:05]} Rg5
{[%clk 00:01:31]} {[%emt 00:00:10]} 43. f3 {[%clk 00:08:44]} {[%emt 00:00:03]}
e5 {[%clk 00:01:29]} {[%emt 00:00:07]} 44. Rxf8+ {[%clk 00:08:44]} {[%emt
00:00:05]} Kg7 {[%clk 00:01:31]} {[%emt 00:00:03]} 45. Be7 {[%clk 00:08:47]}
{[%emt 00:00:02]} e4 {[%clk 00:01:25]} {[%emt 00:00:11]} 46. Bxg5 {[%clk
00:08:50]} {[%emt 00:00:03]} Kxf8 {[%clk 00:01:28]} {[%emt 00:00:02]} 47. fxe4
{[%clk 00:08:54]} {[%emt 00:00:01]} Kf7 {[%clk 00:01:28]} {[%emt 00:00:05]} 48.
Kf2 {[%clk 00:08:58]} {[%emt 00:00:01]} Ke6 {[%clk 00:01:31]} {[%emt 00:00:02]}
49. Ke3 {[%clk 00:09:02]} 1-0

[Event "Rapid Tournament (RAP)"]
[Site "Biel, Switzerland"]
[Date "2026.07.12"]
[Round "1.40"]
[White "Alves, Duarte"]
[Black "Piazza, Carlo"]
[Result "0-1"]
[TimeControl "15 + 5"]
[WhiteTitle "-"]
[BlackTitle "-"]
[WhiteFideId "1370910"]
[BlackFideId "809683"]
[WhiteElo "1673"]
[BlackElo "2076"]

1. e4 {[%emt 01:50:46]} c5 {[%emt 00:00:02]} 2. Nf3 {[%emt 00:00:03]} Nc6
{[%emt 00:00:01]} 3. Bc4 {[%emt 00:00:06]} Nf6 {[%emt 00:00:11]} 4. d3 {[%emt
00:00:25]} d5 {[%emt 00:00:08]} 5. exd5 {[%emt 00:00:16]} Nxd5 {[%emt
00:00:01]} 6. O-O {[%emt 00:00:13]} e6 {[%emt 00:01:14]} 7. d4 {[%emt
00:00:30]} Nf6 {[%emt 00:00:47]} 8. Bg5 {[%emt 00:00:20]} Nxd4 {[%emt
00:00:26]} 9. Nxd4 {[%emt 00:00:25]} cxd4 {[%emt 00:00:56]} 10. c3 {[%emt
00:00:15]} Bc5 {[%emt 00:00:39]} 11. Na3 {[%emt 00:00:58]} O-O {[%emt
00:00:13]} 12. Nc2 {[%emt 00:00:19]} dxc3 {[%emt 00:00:09]} 13. bxc3 {[%emt
00:00:17]} Qxd1 {[%emt 00:01:35]} 14. Raxd1 {[%emt 00:00:03]} Ne4 {[%emt
00:00:08]} 15. Rd3 {[%emt 00:00:44]} Nxg5 {[%emt 00:00:03]} 16. h4 {[%emt
00:00:26]} Ne4 {[%emt 00:00:03]} 17. Ne3 {[%emt 00:00:27]} b6 {[%emt 00:00:52]}
18. Ng4 {[%emt 00:00:16]} Bb7 {[%emt 00:00:21]} 19. Ne5 {[%emt 00:00:49]} Rad8
20. Rd7 {[%emt 00:00:17]} Rxd7 {[%emt 00:00:13]} 21. Nxd7 {[%emt 00:00:02]} Rd8
{[%emt 00:00:05]} 22. Nxc5 {[%emt 00:00:08]} Nxc5 {[%emt 00:00:04]} 23. h5
{[%emt 00:00:19]} Rd2 {[%emt 00:00:06]} 24. a3 {[%emt 00:00:36]} Kf8 {[%emt
00:00:04]} 25. g4 {[%emt 00:00:17]} h6 {[%emt 00:00:09]} 26. Re1 {[%emt
00:00:13]} Ke7 {[%emt 00:00:04]} 27. Re5 {[%emt 00:00:26]} Ne4 {[%emt
00:00:11]} 28. g5 {[%emt 00:00:53]} Nxg5 {[%emt 00:00:07]} 29. f4 {[%emt
00:00:07]} Nf3+ {[%emt 00:00:03]} 30. Kf1 {[%emt 00:00:13]} Nxe5 {[%emt
00:00:03]} 0-1